Cogmind - Beta 13 @@@ ROGUE MODE // 2024.04.14 @ 11:20:57 Player: Dosh Result: Destroyed by D-53 Grenadier with Mini Grenade Launcher Performance ------------- Evolutions (1) 500 Regions Visited (4) 800 Robots Destroyed (12) 60 Value Destroyed (375) 375 Prototype IDs (9) 180 Alien Tech Used (0) 0 Bonus (0) 0 TOTAL SCORE: 1915 Bonus ------- None Cogmind --------- Core Integrity 0/400 Matter 300/300 Energy 100/100 System Corruption 0% Temperature Cool (0) Movement Core (100) Ox1 Location -9/Mines Parts ------- > --- POWER (1) -------- (None) > --- PROPULSION (3) --- (None) > --- UTILITY (3) ------ Small Storage Unit > --- WEAPON (2) ------- (None) > --- INVENTORY (8) ---- Light Ion Engine Light Ion Engine Improved Ion Engine Experimental Sensor Array Assault Rifle Light Assault Rifle Rocket Launcher Datajack Peak State ------------ > --- POWER ------------ Heavy Ion Engine > --- PROPULSION ------- Aluminum Leg Aluminum Leg Aluminum Leg > --- UTILITY ---------- Small Storage Unit Experimental Sensor Array Shield Generator > --- WEAPON ----------- Improved EM Shotgun Light Assault Rifle > --- INVENTORY -------- Light Ion Engine Light Ion Engine Improved Ion Engine Assault Rifle Light Assault Rifle Rocket Launcher Datajack [Rating: 22] Favorites ----------- Power Light Nuclear Core Engine Heavy Ion Engine Power Core Light Nuclear Core Propulsion Aluminum Leg Leg Aluminum Leg Utility Small Storage Unit Device Sensor Array Storage Small Storage Unit Weapon Light Assault Rifle Energy Gun Improved EM Shotgun Ballistic Gun Light Assault Rifle Special Melee Weapon Datajack Build | -11 -10 -10 -9 -9 ------- Run | Yrd Mat Min Mat Min Slots Evolved 2 | . . . 2 . Power . | . . . . . Propulsion 1 | . . . 1 . Utility 1 | . . . 1 . Weapon . | . . . . . Parts Attached 17 | 6 5 1 4 1 Power 3 | 1 1 . 1 . Engine 2 | 1 . . 1 . Core 1 | . 1 . . . Reactor . | . . . . . Propulsion 4 | 2 . 1 1 . Treads . | . . . . . Leg 4 | 2 . 1 1 . Wheel . | . . . . . Hover . | . . . . . Flight . | . . . . . Utility 4 | 1 1 . 1 1 Device 3 | . 1 . 1 1 Storage 1 | 1 . . . . Processor . | . . . . . Hackware . | . . . . . Protection . | . . . . . Artifact . | . . . . . Weapon 6 | 2 3 . 1 . Energy Gun 1 | . . . 1 . Energy Cannon . | . . . . . Ballistic Gun 4 | 2 2 . . . Ballistic Cannon . | . . . . . Launcher . | . . . . . Special Weapon . | . . . . . Impact Weapon . | . . . . . Slashing Weapon . | . . . . . Piercing Weapon . | . . . . . Special Melee Weapon 1 | . 1 . . . Unidentified Prototypes 2 | . . . 1 1 Parts Lost 9 | . . 1 1 7 Power 1 | . . . . 1 Propulsion 4 | . . 1 . 3 Utility 2 | . . . 1 1 Weapon 2 | . . . . 2 Highest Loss Streak 7 | . . 1 1 7 To Critical Strikes . | . . . . . Average Slot Usage (%) 92 | . 99 99 82 83 Engine 3 | . 5 . 2 10 Core 9 | . 8 14 8 . Leg 26 | . 28 27 23 30 Device 13 | . 13 14 14 9 Storage 12 | . 14 14 11 11 Energy Gun 3 | . . . 6 10 Ballistic Gun 22 | . 26 28 15 11 Naked Turns . | . . . . . Heaviest Build 20 | 11 14 14 20 19 Greatest Support 30 | 20 20 20 30 30 Greatest Overweight (x) 1 | . . 1 . 1 Average Overweight (x) . | . . . . . Largest Inventory Capacity 8 | 8 8 8 8 8 Average Capacity 7 | 6 8 8 8 8 Most Carried 8 | 1 4 6 8 8 Average Carried 4 | . 2 4 7 7 Final Capacity 8 | 8 8 8 8 8 Final Carried 8 | 1 4 6 7 8 Class Distribution -------------------- 100% | Mutant Dominant Class ---------------- Mutant | -10/Materials Mutant | -10/Mines Mutant | -9/Materials Mutant | -9/Mines Resources | -11 -10 -10 -9 -9 ----------- Run | Yrd Mat Min Mat Min Matter Collected 569 | 244 112 75 124 14 Remotely . | . . . . . Salvage Created 434 | . 139 98 197 . Parts 27 | . 7 6 14 . Haulers Intercepted 1 | . . . 1 . Recyclers Shooed . | . . . . . Parts Field Recycled . | . . . . . Retrieved Matter . | . . . . . Parts Self-Destructed . | . . . . . Prevented . | . . . . . Kills | -11 -10 -10 -9 -9 ------- Run | Yrd Mat Min Mat Min Combat Hostiles Destroyed 9 | . 3 2 4 . Guns 9 | . 3 2 4 . Classes Destroyed 5 | . 1 1 3 . Tunneler 1 | . . 1 . . Hauler 1 | . . . 1 . Watcher 1 | . . . 1 . Grunt 8 | . 3 2 3 . Sentry 1 | . . . 1 . Best Kill Streak 3 | . 2 2 3 . Combat Bots Only 2 | . 2 2 2 . Max Kills in Single Turn 1 | . 1 1 1 . Gunslinging . | . . . . . Exploded . | . . . . . Melee . | . . . . . Uniques/NPCs Destroyed . | . . . . . Combat | -11 -10 -10 -9 -9 -------- Run | Yrd Mat Min Mat Min Hostile Shots Fired 84 | . 22 12 31 19 Missed 23 | . 9 3 9 2 Damage Taken 1338 | . 171 98 351 718 Core 475 | . 39 31 136 269 Absorbed by Shields 65 | . . . 8 57 Core Remaining (%) 86 | 100 . 72 . . Volleys Fired 61 | . 19 11 25 6 Largest 2 | . 2 2 2 2 Hottest 65 | . 40 40 40 65 Shots Fired 118 | . 38 22 50 8 Gun 118 | . 38 22 50 8 Cannon . | . . . . . Launcher . | . . . . . Special . | . . . . . Kinetic 116 | . 38 22 50 6 Thermal . | . . . . . Explosive . | . . . . . Electromagnetic 2 | . . . . 2 Robot Hit Streak 12 | . 10 12 9 3 Robot Miss Streak 6 | . 6 3 2 2 Penetration Max . | . . . . . Secondary Targets 2 | . . . 2 . Max Gunslinging Chain 1 | . . . 1 . Shots Hit Robots 78 | . 22 13 38 5 Core Hits 23 | . 7 5 10 1 Critical Kills . | . . . . . Critical Parts Destroyed . | . . . . . Critical Strikes . | . . . . . Melee Attacks . | . . . . . Impact . | . . . . . Slashing . | . . . . . Piercing . | . . . . . Sneak Attacks . | . . . . . Combat Hostiles . | . . . . . Follow-up Attacks . | . . . . . Damage Inflicted 953 | . 229 175 497 52 Guns 824 | . 228 143 401 52 Cannons . | . . . . . Explosions 96 | . . . 96 . Melee . | . . . . . Ramming 33 | . 1 32 . . Kinetic 804 | . 228 143 401 32 Thermal 96 | . . . 96 . Explosive . | . . . . . Electromagnetic 20 | . . . . 20 Impact . | . . . . . Slashing . | . . . . . Piercing . | . . . . . Highest Corruption 1 | . . 1 . . Average Corruption 1 | . . 1 . . Corruption Purged . | . . . . . Corruption Blocked . | . . . . . Effects 2 | . . 2 . . Matter Fused 1 | . . 1 . . Alerts 1 | . . 1 . . Overload Shots . | . . . . . Overflow Damage 25 | . . . 25 . Projectiles . | . . . . . Explosions 25 | . . . 25 . Melee . | . . . . . Knockbacks 1 | . . 1 . . Impact 1 | . . 1 . . Kinetic . | . . . . . Secondary . | . . . . . Self-Inflicted Damage 100 | . . . 100 . Shots 1 | . . . 1 . Rammed . | . . . . . Targets Rammed 6 | . 2 4 . . Kicked 6 | . 2 4 . . Crushed . | . . . . . Highest Temperature 20 | . 20 20 18 20 Average Temperature 7 | . 6 6 6 15 Received Heat Transfer 273 | . 93 54 126 . Siege Activations . | . . . . . Robots Corrupted . | . . . . . Combat Hostiles . | . . . . . Parts Fried . | . . . . . Impact Corruptions . | . . . . . Robots Melted . | . . . . . Combat Hostiles . | . . . . . Parts Melted . | . . . . . Heat Transferred 100 | . . . 100 . Parts Sabotaged . | . . . . . Parts Stolen . | . . . . . Parts Stripped . | . . . . . Power Chain Reactions . | . . . . . Alert | -11 -10 -10 -9 -9 ------- Run | Yrd Mat Min Mat Min Peak Influence 232 | . 140 61 232 86 Initial 86 | . . 54 23 86 Average 79 | . 56 49 158 82 Maximum Alert Level 1 | . . . 1 . Low Security (%) 94 | 100 100 100 76 100 Level 1 5 | . . . 23 . Level 2 . | . . . . . Level 3 . | . . . . . Level 4 . | . . . . . Level 5 . | . . . . . High Security . | . . . . . Max Security . | . . . . . Squads Dispatched 4 | . 1 1 2 . Investigation 3 | . 1 1 1 . Extermination . | . . . . . Reinforcement 1 | . . . 1 . Assault . | . . . . . Garrison . | . . . . . Intercept . | . . . . . Searches Triggered . | . . . . . Construction Impeded . | . . . . . Haulers Reinforced . | . . . . . Active Scanning Responses . | . . . . . Cargo Convoy Interrupts . | . . . . . Stealth | -11 -10 -10 -9 -9 --------- Run | Yrd Mat Min Mat Min Distress Signals 6 | . 1 . 5 . Communications Jammed . | . . . . . Distress Signals . | . . . . . Times Spotted 21 | . 6 2 11 2 Peak Tracking Total 4 | . 3 2 4 2 Tactical Retreats 2 | . 1 1 . . Traps | -11 -10 -10 -9 -9 ------- Run | Yrd Mat Min Mat Min Traps Triggered . | . . . . . Indirectly . | . . . . . Trap Hack Attempts 21 | . 21 . . . Triggered 1 | . 1 . . . Disarmed . | . . . . . Reprogrammed 3 | . 3 . . . Reused . | . . . . . Traps Extracted . | . . . . . Installed . | . . . . . Triggered . | . . . . . Machines | -11 -10 -10 -9 -9 ---------- Run | Yrd Mat Min Mat Min Machines Disabled 2 | . . . 2 . Max in Single Turn 2 | . . . 2 . Machines Repaired . | . . . . . Machines Dismantled . | . . . . . Machines Sabotaged . | . . . . . Overloaded Fab Kills . | . . . . . Hacking | -11 -10 -10 -9 -9 --------- Run | Yrd Mat Min Mat Min Machines Accessed 9 | . 1 1 7 . Terminals 9 | . 1 1 7 . Fabricators . | . . . . . Repair Stations . | . . . . . Recycling Units . | . . . . . Scanalyzers . | . . . . . Garrison Access . | . . . . . Total Hacks 26 | . 3 4 19 . Successful 9 | . 1 1 7 . Failed 16 | . 2 3 11 . Catastrophic 3 | . 1 . 2 . Database Lockouts 1 | . . . 1 . Manual 19 | . 2 4 13 . Terminals 26 | . 3 4 19 . Fabricators . | . . . . . Repair Stations . | . . . . . Recycling Units . | . . . . . Scanalyzers . | . . . . . Garrison Access . | . . . . . Terminal Hacks 7 | . 1 1 5 . Robot Analysis 2 | . . . 2 . Prototype ID Bank 3 | . . 1 2 . Locate Traps 2 | . 1 . 1 . Fabricator Hacks . | . . . . . Repair Station Hacks . | . . . . . Recycling Unit Hacks . | . . . . . Scanalyzer . | . . . . . Garrison Access Hacks . | . . . . . Unauthorized Hacks 2 | . . . 2 . Terminals 2 | . . . 2 . Botnet 2 | . . . 2 . Fabricators . | . . . . . Repair Stations . | . . . . . Recycling Units . | . . . . . Scanalyzers . | . . . . . Garrison Access . | . . . . . Data Cores Recovered . | . . . . . Used . | . . . . . Hacking Detections 9 | . 1 1 7 . Full Trace Events 5 | . 1 1 3 . Feedback Events 1 | . . 1 . . Corruption 1 | . . 1 . . Feedback Blocked . | . . . . . Robot Schematics Acquired . | . . . . . Robots Built . | . . . . . Authchips . | . . . . . Time . | . . . . . Total Robot Build Rating . | . . . . . Part Schematics Acquired . | . . . . . Parts Built . | . . . . . Authchips . | . . . . . Time . | . . . . . Total Part Build Rating . | . . . . . Parts Repaired . | . . . . . Time . | . . . . . Parts Recycled . | . . . . . Recycled Matter . | . . . . . Retrieved Matter . | . . . . . Retrieved Components . | . . . . . Parts Scanalyzed . | . . . . . Part Schematics Acquired . | . . . . . Parts Damaged . | . . . . . Bothacking | -11 -10 -10 -9 -9 ------------ Run | Yrd Mat Min Mat Min Used RIF Installer . | . . . . . Robots Hacked . | . . . . . Non-combat . | . . . . . Combat . | . . . . . Robot Hacks Applied . | . . . . . Relay Couplers Released . | . . . . . Fabnet Peak Effective % . | . . . . . Robots Rewired . | . . . . . Allies Hacked . | . . . . . Hacks Repelled . | . . . . . Allies | -11 -10 -10 -9 -9 -------- Run | Yrd Mat Min Mat Min Total Allies . | . . . . . Largest Group . | . . . . . Highest-Rated Group . | . . . . . Highest-Rated Ally . | . . . . . Total Orders . | . . . . . Ally Attacks . | . . . . . Total Damage . | . . . . . Kills . | . . . . . Allies Corrupted . | . . . . . Allies Melted . | . . . . . Intel | -11 -10 -10 -9 -9 ------- Run | Yrd Mat Min Mat Min Robot Analysis Total 2 | . . . 2 . Derelict Logs Recovered 2 | . . 1 . 1 Drone Launches . | . . . . . Drone Recoveries . | . . . . . Exploration | -11 -10 -10 -9 -9 ------------- Run | Yrd Mat Min Mat Min Turns Passed 1579 | 65 286 638 388 202 Spaces Moved 1109 | 48 163 490 255 153 Core 3 | 3 . . . . Treads . | . . . . . Legs 1106 | 45 163 490 255 153 Wheels . | . . . . . Hover . | . . . . . Flight . | . . . . . Fastest Speed 50 | 50 120 120 120 120 Average Speed 120 | 115 120 120 120 121 Slowest Speed 190 | 120 120 190 120 190 Overloaded Moves . | . . . . . Propulsion Burnouts . | . . . . . Robots Hopped . | . . . . . Cave-ins Triggered . | . . . . . Exploration Rate (%) 37 | 4 31 91 25 36 Regions Visited 4 Branch Regions 2 Pre-discovered Areas 1 | . . 1 . . Known Exits Taken . | . . . . . Unknown Exits Taken 4 | 1 1 1 1 . Scrap Searched 2 | . . 1 . 1 Spaces Dug . | . . . . . Terrain Destroyed 25 | . . . 25 . Melee . | . . . . . Projectile . | . . . . . AOE 25 | . . . 25 . Terrain Rammed . | . . . . . Walls Destroyed . | . . . . . Machines Disabled . | . . . . . Actions | -11 -10 -10 -9 -9 --------- Run | Yrd Mat Min Mat Min Total 1240 | 54 216 517 291 162 Wait 22 | . 6 10 5 1 Move 1105 | 47 162 489 254 153 Hop . | . . . . . Pick Up 5 | 1 1 2 1 . Fast Attach 12 | 6 1 1 3 1 Attach 1 | . . . 1 . Detach 2 | . . . 1 1 Swap 4 | . 4 . . . Drop 1 | . . . 1 . Fire 61 | . 19 11 25 6 Melee . | . . . . . Ram . | . . . . . Kick 6 | . 2 4 . . Crush . | . . . . . Escape Stasis . | . . . . . Rewire . | . . . . . Trap 21 | . 21 . . . Miscellaneous . | . . . . . Route ------- -11/Scrapyard -10/Materials -10/Mines -9/Materials -9/Mines (discovered 1 exit: [*Mat]) History --------- Turn | Location | Event 8 | -11/Scrapyard | Discovered new exit (range 16) 66 | -11/Scrapyard | Entered Materials 310 | -10/Materials | Build established: Mutant 314 | -10/Materials | Discovered new exit (range 16) 352 | -10/Materials | Entered Mines 442 | -10/Mines | A weapon hastily lodged in a ceiling crevice suddenly fell to the ground 531 | -10/Mines | Discovered new exit (range 15) 902 | -10/Mines | Received a Rocket Launcher from a helpful Derelict 990 | -10/Mines | Entered Materials 990 | -9/Materials | Evolved 2 slots: Propulsion x1, Utility x1 1337 | -9/Materials | Discovered new exit (range 14) 1345 | -9/Materials | Central database locked down 1378 | -9/Materials | Entered Mines 1392 | -9/Mines | Met a Derelict bent on vengeance 1411 | -9/Mines | Found a damaged Exp. Sensor Array with a note attached 1413 | -9/Mines | Found Prototype Device 1413 | -9/Mines | Identified Exp. Sensor Array 1448 | -9/Mines | Found a hidden stash of uninstalled traps 1490 | -9/Mines | Learned location of 2 exits from Materials 1504 | -9/Mines | Discovered new exit (range 8) 1546 | -9/Mines | Assembled infested the area 1574 | -9/Mines | Core integrity fell below 50% 1578 | -9/Mines | Core integrity fell below 20% 1580 | -9/Mines | Destroyed by D-53 Grenadier with Mini Grenade Launcher Last Messages --------------- 01532_ K-01 Serf collects debris. 01546_ ALERT: Infestation in the mines, dispatching Demolisher response squad. 01558_ C-30 ARC bursts open, deploying its payload. 01558_ D-53 Grenadier unfolds itself. 01560_ K-01 Serf collects debris. 01560_ Aluminum Leg destroyed. 01562_ T-07 Excavator destroyed. 01562_ K-01 Serf collects debris. 01568_ Shield Generator destroyed. 01570_ Imp. EM Shotgun destroyed. 01573_ Aluminum Leg destroyed. 01573_ U-05 Engineer lays Concrete. 01574_ Hvy. Ion Engine destroyed. 01574_ U-05 Engineer lays Concrete. 01576_ The unstable cave ceiling collapses. 01576_ U-05 Engineer lays Concrete. 01578_ D-53 Grenadier destroyed. 01578_ U-05 Engineer lays Concrete. 01580_ Lgt. Assault Rifle destroyed. Map ----- +----------------------------------------------------+ | | | | | | | | | | | | | | | | | | | | | | | | | | | | | | | | | | | | | | | | | ???????????????????#### ####????????????????????? | | ??????????????????## ##???????????????????? | | ????????????????### ##??????????????????? | | ????????????????# #??????????????????? | | ????????????????# #??????????????????? | | ????????????????# # @ #####??????????????? | | ???????????????# d #?????????###??? | | ???????????????# u % #?????#### ##?? | | ??????????####### #### #????## < #?? | | ????????#= ###?## ###### #?? | | ??????????######### #####??## #??? | | ??????????????????######?????## #??? | | ???????????????????????????### #### #??? | | ??????????????????##???????# ##??## ##??? | | ??????????????????# ?????# ##????# #####???? | | ??????????????????? #### #?????## #???????? | | ???????????????????? ##?????## ####????? | | ??????????????????? #??????## ##???? | | ???????????????????? ??????## """ #???? | | ???????????????????? ## ??????# """ #???? | | ???????????????????? ??## ??????# """ ##??? | | ????????????????????????## ##????## ##?? | | ???????????????????????## ######### #?? | | ???????????????????????# ##?## # ##?? | | ???????????????????????# #??### ###??? | | ???????????????????????## #????# #????? | | ????????????????????????#### #????# #????? | | ???????????????????????????## ##???# #????? | | ????????????????????????????# #???# #????? | | ???????????????????????????## #???# #????? | +----------------------------------------------------+ Best States ------------- Heat Dissipation 28 Energy Generation 14 Energy Capacity 280 Matter Stores 300 Matter Capacity 300 Sight Range 16 Robot Scan Range 14 Terrain Scan Density 10 Evasion (%) 55 Item Schematics ----------------- None Robot Schematics ------------------ None Fabricated ------------ Nothing Alien Tech Used ----------------- None Achievements -------------- None Challenges ------------ None Game ------ Seed SystemAngularLance Manual? 0 Play Time 00:07:58 Cumulative 333.2 hours Start 2024.04.14 @ 11:14:02 End 2024.04.14 @ 11:20:57 Sessions 1 Manual Loads 0 Difficulty Rogue Special Mode None Game No. 223 Rogue 223 Adventurer 0 Explorer 0 Win Type - Total 19 Types 12/2/2/1/1/0/0/1/0 Lore% 79 Gallery% 85 Achievement% 75 Wizard Run 0 Options --------- Layout 0 ASCII 0 Keyboard 1 Movement Numpad Keybinds 0 Fullscreen 2 Font 18/SmallcapsGlow Map View 76x50 Zoom Use 0% Tactical HUD 1 Map Filters NONE Filters NONE Steam 1 RUN: cf8b9a62-d4cf-46a5-845f-8501ede8db60